bitfinex-derivatives/quotes_BTCF0:USTF0_20210111
["timestamp","ask_amount","ask_price","bid_price","bid_amount"]
[1610385609035,0.092,32344.0,32300.0,0.0066]
[1610385610135,0.22491608,32345.0,32300.0,0.0066]
[1610385610336,0.10438,32365.0,32300.0,0.0066]
[1610385610536,1.0,32434.0,32300.0,0.0066]
[1610385610936,0.13632608,32365.0,32363.0,0.13632608]
[1610385611138,0.13632608,32365.0,32300.0,0.0066]
[1610385612539,0.07902,32367.0,32300.0,0.0066]
[1610385612937,0.07902,32367.0,32366.0,0.13632608]
[1610385613137,0.0919,32371.0,32352.0,0.11285]
[1610385614336,4.0986,32388.0,32352.0,0.11285]
[1610385614937,4.0986,32388.0,32387.0,0.13632608]
[1610385615139,4.0986,32388.0,32387.0,0.21824608]
[1610385615938,3.7083,32432.0,32387.0,0.21824608]
[1610385616138,0.3179,32567.0,32387.0,0.21824608]
[1610385616539,1.0,32557.0,32387.0,0.21824608]
[1610385616840,0.0912,32488.0,32387.0,0.21824608]
[1610385617039,0.0912,32488.0,32387.0,0.08192]
[1610385617440,0.0937,32466.0,32407.0,3.7069]
[1610385617643,0.10972,32466.0,32407.0,3.7069]
[1610385619043,0.13632608,32455.0,32452.0,0.13632608]
[1610385619246,0.20576608,32455.0,32452.0,0.13632608]
[1610385619445,0.06944,32455.0,32407.0,3.7069]
[1610385619844,0.08627,32455.0,32352.0,0.61285]
[1610385620845,0.2813,32454.0,32352.0,0.61285]
[1610385621043,5.1059,32437.0,32359.0,3.7242]
[1610385621245,5.18048,32437.0,32359.0,3.7242]
[1610385621445,4.5132,32436.0,32352.0,0.61285]
[1610385622246,4.6051,32436.0,32352.0,0.61285]
[1610385623049,4.6051,32436.0,32408.0,0.13632608]
[1610385623248,4.6051,32436.0,32362.0,0.10563]
[1610385623448,4.5132,32436.0,32362.0,0.10563]
[1610385624348,0.0928,32435.0,32362.0,0.10563]
[1610385624750,4.5132,32436.0,32362.0,0.10563]
[1610385624950,4.5132,32436.0,32433.0,0.13632608]
[1610385627153,0.0934,32435.0,32433.0,0.13632608]
[1610385628754,4.5132,32436.0,32433.0,0.13632608]
[1610385629353,4.5132,32436.0,32416.0,0.11252]
[1610385630355,4.5132,32436.0,32362.0,0.10563]
[1610385630558,4.5132,32436.0,32352.0,0.11285]
[1610385630755,4.5132,32436.0,32277.0,1.14312496]
[1610385630955,0.09726,32438.0,32427.0,0.13632608]
[1610385632556,0.0929,32437.0,32427.0,0.13632608]
[1610385632755,0.09726,32438.0,32427.0,0.13632608]
[1610385632956,0.09726,32438.0,32437.0,0.13632608]
[1610385633756,0.18986,32438.0,32437.0,0.13632608]
[1610385634458,0.18986,32438.0,32397.0,0.08007]
[1610385635057,0.18986,32438.0,32437.0,0.13632608]
[1610385635258,0.18986,32438.0,32437.0,0.13332608]
[1610385635560,0.09726,32438.0,32437.0,0.08652608]
[1610385635763,0.0914,32440.0,32437.0,0.08652608]
[1610385635961,0.0914,32440.0,32397.0,0.08007]
[1610385636161,0.08441,32440.0,32278.0,1.1721705]
[1610385636362,0.08441,32440.0,32281.0,1.1771221]
[1610385636762,0.08441,32440.0,32279.0,1.17857954]
[1610385636962,0.13632608,32430.0,32424.0,0.13632608]
[1610385637164,0.21252608,32430.0,32281.0,1.17173925]
[1610385637482,0.21252608,32430.0,32279.0,1.17513335]
[1610385637876,0.21252608,32430.0,32277.0,1.1735741]
[1610385638075,0.0762,32430.0,32277.0,1.1735741]
[1610385638666,0.0762,32430.0,32275.0,1.17296885]
[1610385638865,0.298,32429.0,32276.0,0.2765]
[1610385639066,0.13632608,32417.0,32276.0,0.2765]
[1610385639265,0.21711608,32417.0,32276.0,0.2765]
[1610385639767,0.2749,32416.0,32276.0,0.2765]
[1610385640367,0.2749,32416.0,32313.0,5.1132]
[1610385640567,0.2749,32416.0,32313.0,5.22001]
[1610385640769,0.2749,32416.0,32314.0,0.2959]
[1610385640968,0.13632608,32392.0,32391.0,0.13632608]
[1610385641368,0.11159,32392.0,32314.0,0.2959]
[1610385642367,0.11159,32392.0,32313.0,5.22001]
[1610385642969,0.11159,32392.0,32364.0,0.13632608]
[1610385643370,0.11159,32392.0,32348.0,0.07374]
[1610385643768,0.0913,32391.0,32348.0,0.07374]
[1610385644668,0.0913,32391.0,32313.0,5.22001]
[1610385645069,0.13632608,32362.0,32353.0,0.13632608]
[1610385645270,0.09981,32362.0,32353.0,0.13632608]
[1610385646671,0.09981,32362.0,32353.0,0.12012608]
[1610385647071,0.09981,32362.0,32313.0,5.22001]
[1610385647473,0.09981,32362.0,32313.0,0.10681]
[1610385647674,0.09981,32362.0,32271.0,0.2714]
[1610385649075,0.09981,32362.0,32361.0,0.13632608]
[1610385649275,0.09981,32362.0,32333.0,0.09518]
[1610385649878,0.0925,32368.0,32333.0,0.09518]
[1610385651082,0.0925,32368.0,32367.0,0.13632608]
[1610385651281,0.10534,32369.0,32367.0,0.13632608]
[1610385651481,0.10534,32369.0,32344.0,0.09188]
[1610385652280,0.10534,32369.0,32333.0,0.09518]
[1610385653283,0.10534,32369.0,32365.0,0.13632608]
[1610385653985,0.0913,32368.0,32333.0,0.09518]
[1610385654183,0.0912,32367.0,32333.0,0.09518]
[1610385654385,0.0912,32367.0,32307.0,3.8305]
[1610385655187,0.10534,32369.0,32366.0,0.13632608]
[1610385655388,3.0804337,32461.0,32366.0,0.13632608]
[1610385655787,3.08022391,32466.0,32366.0,0.13632608]
[1610385655989,0.2721,32426.0,32336.0,0.09301]
[1610385656190,0.11149,32382.0,32336.0,0.09301]
[1610385657392,0.11149,32382.0,32381.0,0.13632608]
[1610385659398,0.24781608,32382.0,32353.0,4.6177]
[1610385660603,0.0915,32381.0,32353.0,4.6177]
[1610385661200,0.0915,32381.0,32362.0,0.0163]
[1610385661798,0.11149,32382.0,32362.0,0.0163]
[1610385662805,0.0913,32381.0,32362.0,0.0163]
[1610385663199,0.0813,32381.0,32362.0,0.0163]
[1610385663398,0.0813,32381.0,32380.0,0.13632608]
[1610385663799,0.0813,32381.0,32362.0,0.0163]
[1610385664804,0.11149,32382.0,32362.0,0.0163]
[1610385665003,0.11149,32382.0,32381.0,0.01]
[1610385665203,0.11149,32382.0,32362.0,0.0163]
[1610385665402,0.11149,32382.0,32381.0,0.13632608]
[1610385666204,0.20289,32382.0,32381.0,0.13632608]
[1610385666403,0.11149,32382.0,32381.0,0.13632608]
[1610385666605,0.11149,32382.0,32381.0,0.01]
[1610385667404,0.11149,32382.0,32381.0,0.14632608]
[1610385667604,0.20459,32382.0,32381.0,0.14632608]
[1610385667804,0.11149,32382.0,32381.0,0.14632608]
[1610385668004,0.11149,32382.0,32362.0,0.0163]
[1610385669408,0.11149,32382.0,32381.0,0.13632608]
[1610385669607,0.11149,32382.0,32362.0,0.0163]
[1610385670006,0.0929,32381.0,32362.0,0.0163]
[1610385670907,0.08498,32381.0,32362.0,0.0163]
[1610385671509,3.1279671,32494.0,32362.0,0.0163]
[1610385671709,3.1279671,32494.0,32362.0,0.10784]
[1610385671912,0.0932,32452.0,32448.0,0.13632608]
[1610385672109,0.3781,32449.0,32390.0,0.11013]
[1610385672311,0.2846,32449.0,32390.0,0.11013]
[1610385673514,0.36954,32449.0,32390.0,0.11013]
[1610385675819,0.36954,32449.0,32437.0,0.13632608]
[1610385676320,0.36954,32449.0,32390.0,0.11013]
[1610385677123,0.36954,32449.0,32362.0,0.10784]
[1610385677322,0.36954,32449.0,32390.0,4.358]
[1610385677924,0.36954,32449.0,32386.0,0.11293]
[1610385680629,0.0927,32448.0,32386.0,0.11293]
[1610385681932,0.0927,32448.0,32441.0,0.13632608]
[1610385682136,0.0927,32448.0,32397.0,0.07966]
[1610385682934,0.50586608,32449.0,32397.0,0.07966]
[1610385683535,0.36954,32449.0,32397.0,0.07966]
[1610385683935,0.0912,32448.0,32440.0,0.13632608]
[1610385684338,0.0912,32448.0,32397.0,0.07966]
[1610385685036,0.36954,32449.0,32397.0,0.07966]
[1610385686036,0.36954,32449.0,32448.0,0.13632608]
[1610385686239,0.36954,32449.0,32408.0,0.10238]
[1610385687337,0.36954,32449.0,32397.0,0.07966]
[1610385687539,0.36954,32449.0,32386.0,0.11293]
[1610385687737,0.36954,32449.0,32358.0,1.5]
[1610385687937,0.36954,32449.0,32431.0,0.13632608]
[1610385689538,0.0928,32448.0,32431.0,0.13632608]
[1610385689737,0.36954,32449.0,32431.0,0.13632608]
[1610385689938,0.36954,32449.0,32398.0,0.08649]
[1610385690840,0.0926,32448.0,32398.0,0.08649]
[1610385691941,0.0926,32448.0,32447.0,0.13632608]
[1610385692142,0.0926,32448.0,32398.0,0.08649]
[1610385693444,0.0926,32448.0,32365.0,1.5]
[1610385693445,0.50586608,32449.0,32365.0,1.5]
[1610385693843,0.36954,32449.0,32365.0,1.5]
[1610385694043,0.36954,32449.0,32443.0,0.13632608]
[1610385694446,0.0931,32448.0,32443.0,0.13632608]
[1610385694644,0.08494,32449.0,32443.0,0.13632608]
[1610385695046,0.2829,32486.0,32443.0,0.13632608]
[1610385695645,0.0932,32469.0,32443.0,0.13632608]
[1610385695944,0.0932,32469.0,32448.0,0.13632608]
[1610385696545,0.0915,32476.0,32448.0,0.13632608]
[1610385697046,3.8553,32481.0,32448.0,0.13632608]
[1610385697245,0.092,32476.0,32448.0,0.13632608]
[1610385697445,0.0936,32480.0,32448.0,0.13632608]
[1610385697645,3.8553,32481.0,32448.0,0.13632608]
[1610385698044,0.13632608,32449.0,32448.0,0.13632608]
[1610385698245,0.23923608,32449.0,32415.0,5.168]
[1610385699146,0.33123608,32449.0,32415.0,5.168]
[1610385699346,0.19491,32449.0,32415.0,5.168]
[1610385699748,0.10291,32449.0,32415.0,5.168]
[1610385699948,0.10291,32449.0,32444.0,0.13632608]
[1610385700148,0.10291,32449.0,32415.0,5.168]
[1610385701950,0.10291,32449.0,32430.0,0.13632608]
[1610385702151,0.10291,32449.0,32415.0,5.168]
[1610385703250,1.5,32480.0,32415.0,5.168]
[1610385703651,0.0912,32466.0,32415.0,5.168]
[1610385703852,0.1722,32466.0,32415.0,5.168]
[1610385704051,0.1722,32466.0,32431.0,0.13632608]
[1610385704250,0.081,32466.0,32431.0,0.13632608]
[1610385704652,0.081,32466.0,32415.0,5.168]
[1610385706054,4.9716,32461.0,32438.0,0.13632608]
[1610385707454,0.081,32466.0,32438.0,0.13632608]
[1610385708054,0.13632608,32455.0,32412.0,4.1631]
[1610385708256,0.20558608,32455.0,32412.0,4.1631]
[1610385708454,0.06926,32455.0,32412.0,4.1631]
[1610385710256,0.20558608,32455.0,32449.0,0.13632608]
[1610385710458,0.06926,32455.0,32449.0,0.13632608]
[1610385712360,0.06926,32455.0,32454.0,0.13632608]
[1610385713160,0.081,32466.0,32454.0,0.13632608]
[1610385713362,4.5945,32475.0,32454.0,0.13632608]
[1610385714360,4.5945,32475.0,32466.0,0.13632608]
[1610385715562,4.0013,32503.0,32466.0,0.13632608]
[1610385715764,0.0936,32486.0,32466.0,0.13632608]
[1610385715965,4.0013,32503.0,32466.0,0.13632608]
[1610385716163,4.0013,32503.0,32441.0,4.9187]
[1610385716363,0.14995037,32467.0,32441.0,4.9187]
[1610385717364,0.0911,32466.0,32441.0,4.9187]
[1610385718365,0.0911,32466.0,32443.0,0.13632608]
[1610385718568,0.0911,32466.0,32441.0,4.9187]
[1610385719866,0.14995037,32467.0,32441.0,4.9187]
[1610385720267,0.14995037,32467.0,32455.0,0.13632608]
[1610385721368,0.14995037,32467.0,32441.0,4.9187]
[1610385721968,0.093,32466.0,32441.0,4.9187]
[1610385722269,0.093,32466.0,32452.0,0.13632608]
[1610385722672,0.093,32466.0,32441.0,4.9187]
[1610385723270,0.14995037,32467.0,32441.0,4.9187]
[1610385724370,0.14995037,32467.0,32445.0,0.13632608]
[1610385724371,0.13632608,32452.0,32445.0,0.13632608]
[1610385724571,0.22122608,32452.0,32445.0,0.13632608]
[1610385725972,0.0849,32452.0,32445.0,0.13632608]
[1610385726374,0.0849,32452.0,32426.0,4.2994]
[1610385726972,0.0849,32452.0,32451.0,0.13632608]
[1610385729175,0.1784,32452.0,32451.0,0.13632608]
[1610385730177,0.17809186,32452.0,32451.0,0.13632608]
[1610385730375,0.08459186,32452.0,32451.0,0.13632608]
[1610385730576,0.13632608,32454.0,32451.0,0.13632608]
[1610385731277,0.14995037,32467.0,32426.0,4.2994]
[1610385732177,0.14995037,32467.0,32452.0,0.01]
[1610385732979,0.14995037,32467.0,32457.0,0.13632608]
[1610385733580,0.12995037,32467.0,32457.0,0.13632608]
[1610385733980,0.12995037,32467.0,32452.0,0.01]
[1610385734177,0.12375037,32467.0,32452.0,0.01]
[1610385734978,0.13632608,32453.0,32452.0,0.01]
[1610385735177,0.24864608,32453.0,32452.0,0.01]
[1610385735580,0.34224608,32453.0,32452.0,0.01]
[1610385735981,0.24864608,32453.0,32452.0,0.01]
[1610385736178,0.24864608,32453.0,32426.0,4.2994]
[1610385736979,0.11232,32453.0,32434.0,0.13632608]
[1610385737179,0.11232,32453.0,32426.0,4.2994]
[1610385737380,0.11232,32453.0,32402.0,4.1837]
[1610385738186,1.61232,32453.0,32402.0,4.1837]
[1610385738382,0.0923,32452.0,32402.0,4.1837]
[1610385738588,1.0,32439.0,32402.0,4.1837]
[1610385738787,1.10418,32439.0,32402.0,4.1837]
[1610385738987,1.5,32438.0,32402.0,4.1837]
[1610385739883,1.5931,32438.0,32402.0,4.1837]
[1610385741284,1.5931,32438.0,32362.0,0.0163]
[1610385741485,0.13632608,32363.0,32362.0,0.0163]
[1610385742085,0.08405,32363.0,32362.0,0.0163]
[1610385742285,0.08425,32370.0,32362.0,0.0163]
[1610385742686,1.0,32369.0,32362.0,0.0163]
[1610385742886,1.0,32369.0,32331.0,0.07872]
[1610385743086,1.5,32368.0,32331.0,0.07872]
[1610385743284,0.0926,32367.0,32331.0,0.07872]
[1610385743591,0.0926,32367.0,32322.0,0.2998]
[1610385743787,0.13632608,32323.0,32322.0,0.2998]
[1610385744191,0.09294,32347.0,32322.0,0.2998]
[1610385745688,0.09294,32347.0,32259.0,1.44670334]
[1610385745689,0.09294,32347.0,32301.0,0.08898]
[1610385745888,0.13632608,32323.0,32301.0,0.08898]
[1610385746088,0.21184608,32323.0,32301.0,0.08898]
[1610385746289,0.6943,32313.0,32301.0,8e-05]
[1610385746490,0.76734,32313.0,32301.0,8e-05]
[1610385746688,0.76734,32313.0,32263.0,0.04077185]
[1610385746891,0.76734,32313.0,32259.0,4.4508]
[1610385747890,0.13632608,32260.0,32259.0,4.4508]
[1610385748091,0.10395,32260.0,32190.0,1.24513262]
[1610385748490,0.10395,32260.0,32181.0,1.24115342]
[1610385748891,0.10395,32260.0,32168.0,1.65487123]
[1610385748892,0.10395,32260.0,32169.0,1.24956657]
[1610385749291,0.10395,32260.0,32166.0,1.24683883]
[1610385749593,0.10395,32260.0,32157.0,1.24599376]
[1610385749804,0.10395,32260.0,32199.0,0.13632608]
[1610385749999,0.10395,32260.0,32199.0,0.11217]
[1610385750895,0.10395,32260.0,32172.0,0.11252]
[1610385751895,0.13632608,32173.0,32172.0,0.11252]
[1610385752097,0.13632608,32173.0,32164.0,0.10523]
[1610385752296,0.11055,32184.0,32164.0,0.10523]
[1610385752695,0.07187,32202.0,32164.0,0.10523]
[1610385753097,4.6484,32226.0,32164.0,0.78343]
[1610385754298,1.0,32205.0,32189.0,1.0]
[1610385755219,0.13632608,32190.0,32189.0,1.0]
[1610385756303,0.13632608,32190.0,32164.0,0.78343]
[1610385756500,0.09447,32220.0,32164.0,0.78343]
[1610385756501,0.092,32214.0,32164.0,0.78343]
[1610385757101,0.092,32214.0,32164.0,0.74133]
[1610385757304,0.13632608,32165.0,32154.0,0.13632608]
[1610385757901,0.07288,32185.0,32154.0,0.13632608]
[1610385758100,0.07288,32185.0,32154.0,0.21513608]
[1610385758300,0.07288,32185.0,32180.0,1.0]
[1610385758702,1.0,32196.0,32180.0,1.0]
[1610385758904,1.0,32196.0,32180.0,0.8342]
[1610385759101,1.0,32272.0,32178.0,0.08477]
[1610385759304,1.0,32269.0,32178.0,0.08477]
[1610385759803,0.13632608,32181.0,32178.0,0.08477]
[1610385761003,1.0,32269.0,32178.0,0.08477]
[1610385761202,1.0,32276.0,32178.0,0.08477]
[1610385761403,1.5,32275.0,32178.0,0.08477]
[1610385761804,1.0,32276.0,32178.0,0.08477]
[1610385762407,0.13632608,32186.0,32178.0,0.08477]
[1610385762805,0.0929,32199.0,32178.0,0.08477]
[1610385763206,0.0933,32200.0,32178.0,0.08477]
[1610385763807,0.0933,32200.0,32178.0,0.09777]
[1610385764008,0.0933,32200.0,32178.0,0.07072]
[1610385764208,0.0933,32200.0,32154.0,0.07881]
[1610385764410,0.1866,32200.0,32150.0,4.9344]
[1610385766916,0.13632608,32151.0,32150.0,4.9344]
[1610385767312,0.13632608,32151.0,32134.0,0.13632608]
[1610385767313,0.5375,32151.0,32134.0,0.13632608]
[1610385767512,0.5375,32151.0,32105.0,3.5116]
[1610385767914,5.0366,32145.0,32095.0,1.0]
[1610385768517,0.0927,32151.0,32095.0,1.0]
[1610385768738,2.20352943,32321.0,32126.0,0.07842]
[1610385769120,0.2919,32190.0,32126.0,0.07842]
[1610385769329,0.2919,32190.0,32142.0,1.0]
[1610385769517,0.02185,32190.0,32142.0,1.09047]
[1610385769730,0.0932,32223.0,32142.0,1.09047]
[1610385770122,0.0932,32223.0,32187.0,0.13632608]
[1610385770935,0.0932,32223.0,32187.0,0.11401]
[1610385771332,0.0932,32223.0,32187.0,0.07191]
[1610385771820,4.4731,32207.0,32187.0,0.00301]
[1610385772020,0.0921,32214.0,32187.0,1e-05]
[1610385772822,0.13632608,32188.0,32187.0,1e-05]
[1610385773020,0.23002608,32188.0,32187.0,1e-05]
[1610385774923,0.23002608,32188.0,32142.0,0.09047]
[1610385775121,0.093,32187.0,32133.0,1.0]
[1610385775324,0.19093,32187.0,32126.0,0.07842]
[1610385775522,0.19093,32187.0,32089.0,1.0]
[1610385776921,0.19093,32187.0,32130.0,0.13632608]
[1610385777121,0.19093,32187.0,32130.0,0.23509608]
[1610385778522,0.09793,32187.0,32130.0,0.23509608]
[1610385779025,0.09793,32187.0,32130.0,0.09877]
[1610385779624,0.0933,32186.0,32130.0,0.09877]
[1610385780025,0.13632608,32175.0,32169.0,0.13632608]
[1610385780226,0.0928,32180.0,32130.0,0.09877]
[1610385780826,0.0933,32186.0,32130.0,0.09877]
[1610385781027,0.0943,32191.0,32130.0,0.09877]
[1610385781431,1.0,32321.0,32130.0,0.09877]
[1610385781829,0.0918,32306.0,32130.0,0.09877]
[1610385782229,0.0918,32306.0,32130.0,0.11307]
[1610385782430,0.2989,32320.0,32130.0,0.11307]
[1610385783031,0.2989,32320.0,32131.0,1.5]
[1610385783230,0.2989,32320.0,32227.0,1.0]
[1610385783430,0.2989,32320.0,32227.0,1.09826]
[1610385785335,0.2989,32320.0,32227.0,0.09826]
[1610385786835,0.2989,32320.0,32246.0,0.13632608]
[1610385787037,0.2989,32320.0,32227.0,0.09826]
[1610385787038,0.2989,32320.0,32242.0,0.08644]
[1610385787239,0.39365,32320.0,32242.0,0.08644]
[1610385787637,1.89365,32320.0,32242.0,0.08644]
[1610385788041,1.89365,32320.0,32198.0,1.0]
[1610385788440,0.275,32319.0,32198.0,1.0]
[1610385788638,4.6253,32303.0,32219.0,4.733]
[1610385788839,4.69616,32303.0,32219.0,4.733]
[1610385789039,4.69616,32303.0,32241.0,0.13632608]
[1610385789239,1.0,32274.0,32258.0,1.0]
[1610385789640,1.0,32274.0,32258.0,0.9683]
[1610385790043,0.09843,32278.0,32238.0,0.08751]
[1610385790751,0.09843,32278.0,32228.0,0.09283]
[1610385790752,0.19173,32278.0,32228.0,0.09283]
[1610385790955,0.19173,32278.0,32211.0,0.0951]
[1610385791961,0.19173,32278.0,32256.0,0.13632608]
[1610385792155,0.09843,32278.0,32256.0,0.22222608]
[1610385792346,0.09843,32278.0,32256.0,0.0859]
[1610385792546,0.2928,32295.0,32256.0,0.0859]
[1610385793149,0.2928,32295.0,32256.0,0.0187]
[1610385793947,0.13632608,32257.0,32256.0,0.0187]
[1610385794146,0.21371608,32257.0,32237.0,0.13632608]
[1610385794347,0.07739,32257.0,32237.0,0.13632608]
[1610385794547,0.07739,32257.0,32211.0,0.0951]
[1610385795147,0.07115,32271.0,32211.0,0.0951]
[1610385795947,0.13632608,32224.0,32219.0,0.13632608]
[1610385796147,0.13632608,32224.0,32179.0,1.0]
[1610385796347,0.0941,32223.0,32179.0,1.0]
[1610385796548,0.00724,32224.0,32179.0,1.0]
[1610385796747,0.00724,32224.0,32179.0,1.09294]
[1610385797148,0.08686,32225.0,32179.0,1.09294]
[1610385797346,0.08686,32225.0,32198.0,5.1816]
[1610385797548,0.0932,32224.0,32179.0,1.0]
[1610385797948,0.0932,32224.0,32171.0,0.09159]
[1610385798749,0.0932,32224.0,32205.0,0.13632608]
[1610385798950,0.0932,32224.0,32205.0,0.24687608]
[1610385799350,0.10385,32232.0,32205.0,0.11055]
[1610385800053,4.2889,32219.0,32184.0,0.08395]
[1610385800253,4.36199,32219.0,32184.0,0.08395]
[1610385800458,4.36199,32219.0,32156.0,4.6768]
[1610385801255,4.0316,32207.0,32152.0,0.13632608]
[1610385801454,4.13189,32207.0,32152.0,0.13632608]
[1610385801856,1.0,32185.0,32169.0,1.0]
[1610385802054,1.09937,32185.0,32169.0,1.0]
[1610385802253,1.09937,32185.0,32169.0,0.2549]
[1610385802454,1.09937,32185.0,32169.0,0.2382]
[1610385802653,0.09937,32185.0,32128.0,3.5295]
[1610385802855,0.09937,32185.0,32158.0,0.13632608]
[1610385803054,0.0931,32184.0,32158.0,0.13632608]
[1610385803457,0.0931,32184.0,32156.0,0.09786]
[1610385803656,0.0931,32184.0,32156.0,6e-05]
[1610385804555,0.0931,32184.0,32128.0,3.5295]
[1610385804756,0.13632608,32145.0,32128.0,3.5295]
[1610385805156,0.08054,32170.0,32128.0,3.5295]
[1610385805357,0.08054,32170.0,32128.0,3.63891]
[1610385806356,0.08054,32170.0,32128.0,0.10941]
[1610385806556,0.08054,32170.0,32128.0,0.06961]
[1610385806756,0.08054,32170.0,32080.0,1.32697259]
[1610385807156,0.13632608,32133.0,32132.0,0.13632608]
[1610385807357,0.093,32146.0,32132.0,0.13632608]
[1610385807556,0.093,32146.0,32074.0,1.33119153]
[1610385807757,0.093,32146.0,32089.0,5.021]
[1610385807958,0.093,32146.0,32089.0,5.12971]
[1610385809469,4.9787,32123.0,32089.0,0.04921]
[1610385809665,0.13632608,32090.0,32052.0,5.0528]
[1610385810062,1.5,32091.0,32042.0,1.3721377]
[1610385810264,1.5,32089.0,32042.0,0.9696877]
[1610385810462,1.59965,32089.0,32042.0,0.04295]
[1610385810662,1.59965,32089.0,32027.0,1.38413777]
[1610385810863,1.0,32043.0,31993.0,1.51620516]
[1610385811065,1.08913,32043.0,31993.0,1.50620516]
[1610385811263,1.5,32042.0,31979.0,1.53106575]
[1610385811664,1.5,32042.0,31966.0,2.0021629]
[1610385811665,1.5,32042.0,31944.0,1.66753562]
[1610385811864,0.13632608,31980.0,31949.0,0.13632608]
[1610385812064,1.08913,32043.0,31916.0,1.692429]
[1610385812065,0.0945,31985.0,31916.0,1.692429]
[1610385812264,0.0945,31985.0,31933.0,1.67731068]
[1610385812465,0.0945,31985.0,31933.0,1.78426068]
[1610385812665,0.09165358,32000.0,31933.0,1.78426068]
[1610385812866,1.0,31996.0,31933.0,0.10695]
[1610385813064,1.08931,31996.0,31933.0,0.10695]
[1610385813265,1.08931,31996.0,31933.0,5e-05]
[1610385813670,0.0943,31995.0,31933.0,5e-05]
[1610385814371,0.13632608,31937.0,31933.0,5e-05]
[1610385814566,0.0938,31985.0,31933.0,5e-05]
[1610385815169,3.981,31965.0,31933.0,5e-05]
[1610385815567,0.0943,31964.0,31933.0,5e-05]
[1610385816167,0.01555,31929.0,31916.0,0.09633]
[1610385816370,0.0944,31951.0,31916.0,0.09633]
[1610385816768,0.0937,31962.0,31916.0,0.09633]
[1610385816966,0.0937,31962.0,31961.0,0.13632608]
[1610385817166,0.0943,31964.0,31961.0,0.09532]
[1610385817565,0.0943,31964.0,31961.0,0.07412]
[1610385817766,0.0938,31985.0,31961.0,0.07412]
[1610385817966,4.9919,31988.0,31961.0,0.07412]
[1610385818866,0.0947,32006.0,31961.0,0.07412]
[1610385819069,0.0947,32006.0,32005.0,0.13632608]
[1610385819269,0.0947,32006.0,32005.0,0.22095608]
[1610385819668,0.0947,32006.0,32005.0,0.08463]
[1610385819868,4.8882,32019.0,32005.0,0.08463]
[1610385820268,1.79802,32019.0,32005.0,0.08463]
[1610385820468,1.2915,32042.0,32005.0,0.08463]
[1610385820469,6.4171,32042.0,32005.0,0.08083]
[1610385820669,5.74978,32042.0,32005.0,0.08083]
[1610385821070,5.1256,32042.0,32005.0,0.08083]
[1610385822269,0.0937,32041.0,32005.0,0.08083]
[1610385822470,5.1256,32042.0,32005.0,0.08083]
[1610385822669,0.08497,32080.0,32005.0,0.08083]
[1610385822870,0.08497,32080.0,32014.0,1.0]
[1610385823070,0.08497,32080.0,32014.0,1.09633]
[1610385823470,0.093,32079.0,32014.0,1.09633]
[1610385823671,4.952,32088.0,32014.0,1.09633]
[1610385824873,4.952,32088.0,32025.0,1.0]
[1610385825070,4.952,32088.0,32025.0,1.09005]
[1610385825572,0.13632608,32073.0,32063.0,0.13632608]
[1610385825773,0.13632608,32073.0,32063.0,0.07492608]
[1610385825972,0.13632608,32073.0,32025.0,1.09005]
[1610385826175,0.0938,32086.0,32025.0,1.09005]
[1610385826573,4.952,32088.0,32025.0,1.09005]
[1610385826974,4.952,32088.0,32025.0,0.09005]
[1610385827373,0.07463,32092.0,32025.0,0.09005]
[1610385827574,0.07463,32092.0,32061.0,0.13632608]
[1610385827774,4.88663,32092.0,32061.0,0.13632608]
[1610385828173,4.88663,32092.0,32061.0,2.608e-05]
[1610385828373,4.88663,32092.0,32051.0,2.608e-05]
[1610385829973,4.812,32092.0,32051.0,2.608e-05]
[1610385830175,4.812,32092.0,32068.0,0.13632608]
[1610385830176,0.13632608,32074.0,32068.0,0.13632608]
[1610385830977,6.0,32069.0,32068.0,0.13632608]
[1610385831178,6.10995,32069.0,32068.0,0.13632608]
[1610385832079,6.10995,32069.0,32037.0,1.0]
[1610385832282,7.60995,32069.0,32037.0,1.0]
[1610385832981,1.60995,32069.0,31957.0,1.0]
[1610385834785,1.60995,32069.0,32005.0,4.08643]
[1610385834983,1.0,32035.0,31907.0,1.0]
[1610385835183,1.0,32035.0,31894.0,0.47695555]
[1610385835184,1.0,32010.0,31894.0,0.47695555]
[1610385835385,1.5,32009.0,31894.0,0.47695555]
[1610385835584,1.5,32009.0,31882.0,1.0]
[1610385837087,1.0,31994.0,31866.0,1.0]
[1610385837287,1.5,31993.0,31866.0,1.0]
[1610385837690,1.5,31993.0,31944.0,4.1811]
[1610385838889,1.10598,31994.0,31944.0,4.1811]
[1610385839093,0.10598,31994.0,31944.0,4.1811]
[1610385839290,0.10598,31994.0,31944.0,4.28136]
[1610385839903,0.10598,31994.0,31944.0,0.10026]
[1610385840096,1.0,32002.0,31944.0,0.10026]
[1610385840704,0.0169,32089.0,31944.0,0.10026]
[1610385840902,0.0946,32116.0,31952.0,0.2936]
[1610385841094,1.093,32109.0,31981.0,1.0]
[1610385841300,1.093,32109.0,31981.0,1.07245]
[1610385841909,2.5,32109.0,31981.0,1.07245]
[1610385842299,0.0938,32069.0,31917.0,4.16436]
[1610385842495,0.1911,32069.0,31981.0,0.11037]
[1610385842695,0.0973,32069.0,31981.0,0.11037]
[1610385843096,0.0945,31993.0,31981.0,0.11037]
[1610385843298,0.0945,32007.0,31981.0,0.11037]
[1610385843496,0.103,32021.0,32005.0,0.13632608]
[1610385843695,0.103,32021.0,32005.0,0.24857608]
[1610385844297,0.103,32021.0,32005.0,0.11225]
[1610385844496,1.0,32144.0,32005.0,0.11225]
[1610385845298,0.0942,32140.0,32005.0,0.11225]
[1610385845497,0.0931,32130.0,32005.0,0.11225]